{"text_format":"3","workbook":"xlsx","n_sheets":2,"sheets":["Rashodi","Kategorija"],"not_rendered":{"defined_names":5},"read":"whole","date_system":"1900"}

{"sheet":"Rashodi","index":0,"n_rows":25,"n_cols":7,"rows_kept":25,"merged":[[0,1,0,5],[1,1,1,5]]}
[null,"BUDŽET ZA TROŠKOVE",{"$nulls":4},{"$f":"TODAY()","v":{"v":44575,"d":"4457500.00%"}}]
[null,"Ime preduzeća"]
[null,"Trošak","Kategorija","Budžet","Stvarno","Razlika (USD)","Razlika (%)"]
[null,"Reklamiranje","Operativni",null,null,{"$f":"IFERROR(SUM(Rashodi[[#This Row],[Budžet]]-Rashodi[[#This Row],[Stvarno]]), \"\")","v":0},{"$f":"IFERROR(SUM(Rashodi[[#This Row],[Razlika (USD)]]/Rashodi[[#This Row],[Budžet]]),\"\")","v":""}]
[null,"Dugovanja","Operativni",null,null,{"$f":"IFERROR(SUM(Rashodi[[#This Row],[Budžet]]-Rashodi[[#This Row],[Stvarno]]), \"\")","v":0},{"$f":"IFERROR(SUM(Rashodi[[#This Row],[Razlika (USD)]]/Rashodi[[#This Row],[Budžet]]),\"\")","v":""}]
[null,"Pogodnosti","Operativni",null,null,{"$f":"IFERROR(SUM(Rashodi[[#This Row],[Budžet]]-Rashodi[[#This Row],[Stvarno]]), \"\")","v":0},{"$f":"IFERROR(SUM(Rashodi[[#This Row],[Razlika (USD)]]/Rashodi[[#This Row],[Budžet]]),\"\")","v":""}]
[null,"Pribor","Operativni",null,null,{"$f":"IFERROR(SUM(Rashodi[[#This Row],[Budžet]]-Rashodi[[#This Row],[Stvarno]]), \"\")","v":0},{"$f":"IFERROR(SUM(Rashodi[[#This Row],[Razlika (USD)]]/Rashodi[[#This Row],[Budžet]]),\"\")","v":""}]
[null,"Poštarina","Operativni",null,null,{"$f":"IFERROR(SUM(Rashodi[[#This Row],[Budžet]]-Rashodi[[#This Row],[Stvarno]]), \"\")","v":0},{"$f":"IFERROR(SUM(Rashodi[[#This Row],[Razlika (USD)]]/Rashodi[[#This Row],[Budžet]]),\"\")","v":""}]
[null,"Iznajmljivanje ili hipoteka","Operativni",null,null,{"$f":"IFERROR(SUM(Rashodi[[#This Row],[Budžet]]-Rashodi[[#This Row],[Stvarno]]), \"\")","v":0},{"$f":"IFERROR(SUM(Rashodi[[#This Row],[Razlika (USD)]]/Rashodi[[#This Row],[Budžet]]),\"\")","v":""}]
[null,"Troškovi prodaje","Operativni",null,null,{"$f":"IFERROR(SUM(Rashodi[[#This Row],[Budžet]]-Rashodi[[#This Row],[Stvarno]]), \"\")","v":0},{"$f":"IFERROR(SUM(Rashodi[[#This Row],[Razlika (USD)]]/Rashodi[[#This Row],[Budžet]]),\"\")","v":""}]
[null,"Porezi","Operativni",null,null,{"$f":"IFERROR(SUM(Rashodi[[#This Row],[Budžet]]-Rashodi[[#This Row],[Stvarno]]), \"\")","v":0},{"$f":"IFERROR(SUM(Rashodi[[#This Row],[Razlika (USD)]]/Rashodi[[#This Row],[Budžet]]),\"\")","v":""}]
[null,"Komunalne usluge","Operativni",null,null,{"$f":"IFERROR(SUM(Rashodi[[#This Row],[Budžet]]-Rashodi[[#This Row],[Stvarno]]), \"\")","v":0},{"$f":"IFERROR(SUM(Rashodi[[#This Row],[Razlika (USD)]]/Rashodi[[#This Row],[Budžet]]),\"\")","v":""}]
[null,"Drugo","Operativni",null,null,{"$f":"IFERROR(SUM(Rashodi[[#This Row],[Budžet]]-Rashodi[[#This Row],[Stvarno]]), \"\")","v":0},{"$f":"IFERROR(SUM(Rashodi[[#This Row],[Razlika (USD)]]/Rashodi[[#This Row],[Budžet]]),\"\")","v":""}]
[null,"Osiguranje","Operativni",null,null,{"$f":"IFERROR(SUM(Rashodi[[#This Row],[Budžet]]-Rashodi[[#This Row],[Stvarno]]), \"\")","v":0},{"$f":"IFERROR(SUM(Rashodi[[#This Row],[Razlika (USD)]]/Rashodi[[#This Row],[Budžet]]),\"\")","v":""}]
[null,"Kamata","Operativni",null,null,{"$f":"IFERROR(SUM(Rashodi[[#This Row],[Budžet]]-Rashodi[[#This Row],[Stvarno]]), \"\")","v":0},{"$f":"IFERROR(SUM(Rashodi[[#This Row],[Razlika (USD)]]/Rashodi[[#This Row],[Budžet]]),\"\")","v":""}]
[null,"Telefon","Operativni",null,null,{"$f":"IFERROR(SUM(Rashodi[[#This Row],[Budžet]]-Rashodi[[#This Row],[Stvarno]]), \"\")","v":0},{"$f":"IFERROR(SUM(Rashodi[[#This Row],[Razlika (USD)]]/Rashodi[[#This Row],[Budžet]]),\"\")","v":""}]
[null,"Održavanje i popravke","Operativni",null,null,{"$f":"IFERROR(SUM(Rashodi[[#This Row],[Budžet]]-Rashodi[[#This Row],[Stvarno]]), \"\")","v":0},{"$f":"IFERROR(SUM(Rashodi[[#This Row],[Razlika (USD)]]/Rashodi[[#This Row],[Budžet]]),\"\")","v":""}]
[null,"Pravne naknade","Operativni",null,null,{"$f":"IFERROR(SUM(Rashodi[[#This Row],[Budžet]]-Rashodi[[#This Row],[Stvarno]]), \"\")","v":0},{"$f":"IFERROR(SUM(Rashodi[[#This Row],[Razlika (USD)]]/Rashodi[[#This Row],[Budžet]]),\"\")","v":""}]
[null,"Ispravka","Operativni",null,null,{"$f":"IFERROR(SUM(Rashodi[[#This Row],[Budžet]]-Rashodi[[#This Row],[Stvarno]]), \"\")","v":0},{"$f":"IFERROR(SUM(Rashodi[[#This Row],[Razlika (USD)]]/Rashodi[[#This Row],[Budžet]]),\"\")","v":""}]
[null,"Isporuka","Operativni",null,null,{"$f":"IFERROR(SUM(Rashodi[[#This Row],[Budžet]]-Rashodi[[#This Row],[Stvarno]]), \"\")","v":0},{"$f":"IFERROR(SUM(Rashodi[[#This Row],[Razlika (USD)]]/Rashodi[[#This Row],[Budžet]]),\"\")","v":""}]
[null,"Skladištenje","Operativni",null,null,{"$f":"IFERROR(SUM(Rashodi[[#This Row],[Budžet]]-Rashodi[[#This Row],[Stvarno]]), \"\")","v":0},{"$f":"IFERROR(SUM(Rashodi[[#This Row],[Razlika (USD)]]/Rashodi[[#This Row],[Budžet]]),\"\")","v":""}]
[null,"Prodavnica","Lično",null,null,{"$f":"IFERROR(SUM(Rashodi[[#This Row],[Budžet]]-Rashodi[[#This Row],[Stvarno]]), \"\")","v":0},{"$f":"IFERROR(SUM(Rashodi[[#This Row],[Razlika (USD)]]/Rashodi[[#This Row],[Budžet]]),\"\")","v":""}]
[null,"Prodavci","Lično",null,null,{"$f":"IFERROR(SUM(Rashodi[[#This Row],[Budžet]]-Rashodi[[#This Row],[Stvarno]]), \"\")","v":0},{"$f":"IFERROR(SUM(Rashodi[[#This Row],[Razlika (USD)]]/Rashodi[[#This Row],[Budžet]]),\"\")","v":""}]
[null,"Drugo","Lično",null,null,{"$f":"IFERROR(SUM(Rashodi[[#This Row],[Budžet]]-Rashodi[[#This Row],[Stvarno]]), \"\")","v":0},{"$f":"IFERROR(SUM(Rashodi[[#This Row],[Razlika (USD)]]/Rashodi[[#This Row],[Budžet]]),\"\")","v":""}]
[null,"Ukupni troškovi",null,{"$f":"IFERROR(SUM(Rashodi[Budžet]), \"\")","v":0},{"$f":"IFERROR(SUM(Rashodi[Stvarno]), \"\")","v":0},{"$f":"IFERROR(SUM(Rashodi[Razlika (USD)]), \"\")","v":0},{"$f":"IFERROR(SUM(Rashodi[[#Totals],[Razlika (USD)]]/Rashodi[[#Totals],[Budžet]]),\"\")","v":""}]

{"sheet":"Kategorija","index":1,"n_rows":4,"n_cols":2,"rows_kept":4}
[null,"Pronalaženje kategorija"]
[null,"Kategorija"]
[null,"Operativni"]
[null,"Lično"]